fUSD/lending_fUSD_20241001
["ID","MTS","AMOUNT","RATE_DAILY","PERIOD"]
[339642363,1727790639834,-157.68518892,0.000128,2]
[339642364,1727790639843,-157.68518892,0.000128,2]
[339642365,1727790639853,-157.68518892,0.000128,2]
[339642366,1727790639862,-157.68518892,0.000128,2]
[339642367,1727790639871,-157.68518892,0.000128,2]
[339642368,1727790639882,-157.68518892,0.000128,2]
[339642369,1727790639891,-157.68518892,0.000128,2]
[339642370,1727790639900,-157.68518892,0.000128,2]
[339642371,1727790639909,-157.68518892,0.000128,2]
[339642372,1727790639919,-157.68518892,0.000128,2]
[339642373,1727790639928,-157.68518892,0.000128,2]
[339642374,1727790639938,-157.68518892,0.000128,2]
[339642375,1727790639947,-157.68518892,0.000128,2]
[339642376,1727790639956,-157.68518892,0.000128,2]
[339642377,1727790639965,-157.68518892,0.000128,2]
[339642378,1727790639974,-157.68518892,0.000128,2]
[339642379,1727790639983,-157.68518892,0.000128,2]
[339642380,1727790639991,-158.18,0.000128,2]
[339642381,1727790640001,-567.7416801,0.000128,2]
[339642382,1727790640011,-567.7416801,0.000128,2]
[339642383,1727790640020,-567.7416801,0.000128,2]
[339642384,1727790640029,-567.7416801,0.000128,2]
[339642385,1727790640037,-567.7416801,0.000128,2]
[339642386,1727790640046,-567.7416801,0.000128,2]
[339642387,1727790640055,-567.7416801,0.000128,2]
[339642388,1727790640064,-567.7416801,0.000128,2]
[339642389,1727790640074,-567.7416801,0.000128,2]
[339642390,1727790640083,-567.7416801,0.000128,2]
[339642391,1727790640092,-567.7416801,0.000128,2]
[339642392,1727790640102,-567.7416801,0.000128,2]
[339642393,1727790640110,-567.7416801,0.000128,2]
[339642394,1727790640119,-567.7416801,0.000128,2]
[339642395,1727790640131,-567.7416801,0.000128,2]
[339642396,1727790640140,-567.7416801,0.000128,2]
[339642397,1727790640150,-567.7416801,0.000128,2]
[339642398,1727790640159,-567.7416801,0.000128,2]
[339642400,1727790640167,-567.7416801,0.000128,2]
[339642401,1727790640176,-568.24,0.000128,2]
[339642402,1727790640185,-151.65768522,0.000128,2]
[339642403,1727790640194,-151.65768522,0.000128,2]
[339642404,1727790640203,-151.65768522,0.000128,2]
[339642405,1727790640213,-151.65768522,0.000128,2]
[339642406,1727790640222,-151.65768522,0.000128,2]
[339642407,1727790640231,-151.65768522,0.000128,2]
[339642408,1727790640239,-151.65768522,0.000128,2]
[339642409,1727790640248,-151.65768522,0.000128,2]
[339642410,1727790640258,-151.65768522,0.000128,2]
[339642411,1727790640267,-151.65768522,0.000128,2]
[339642412,1727790640275,-151.65768522,0.000128,2]
[339642413,1727790640285,-151.65768522,0.000128,2]
[339642414,1727790640293,-151.65768522,0.000128,2]
[339642415,1727790640303,-151.65768522,0.000128,2]
[339642416,1727790640312,-151.65768522,0.000128,2]
[339642417,1727790640321,-151.65768522,0.000128,2]
[339642418,1727790640330,-151.65768522,0.000128,2]
[339642419,1727790640338,-151.65768522,0.000128,2]
[339642420,1727790640347,-151.65768522,0.000128,2]
[339642421,1727790640357,-152.15,0.000128,2]
[339642422,1727790640367,-606.70574087,0.000128,2]
[339642423,1727790640381,-606.70574087,0.000128,2]
[339642424,1727790640390,-606.70574087,0.000128,2]
[339642425,1727790640399,-606.70574087,0.000128,2]
[339642426,1727790640408,-606.70574087,0.000128,2]
[339642427,1727790640418,-606.70574087,0.000128,2]
[339642428,1727790640427,-606.70574087,0.000128,2]
[339642429,1727790640435,-606.70574087,0.000128,2]
[339642430,1727790640444,-606.70574087,0.000128,2]
[339642431,1727790640454,-606.70574087,0.000128,2]
[339642432,1727790640463,-606.70574087,0.000128,2]
[339642433,1727790640472,-606.70574087,0.000128,2]
[339642434,1727790640481,-606.70574087,0.000128,2]
[339642435,1727790640491,-606.70574087,0.000128,2]
[339642436,1727790640500,-606.70574087,0.000128,2]
[339642437,1727790640509,-606.70574087,0.000128,2]
[339642438,1727790640518,-606.70574087,0.000128,2]
[339642440,1727790640527,-606.70574087,0.000128,2]
[339642442,1727790640536,-606.70574087,0.000128,2]
[339642444,1727790640546,-607.2,0.000128,2]
[339642446,1727790640555,-535.52,0.00012827,2]
[339642448,1727790640564,-807.70838974,0.0001283,7]
[339642450,1727790640573,-795.8887464,0.00012871,2]
[339642452,1727790640582,-500.0,0.00012873,2]
[339642453,1727790640592,-500.0,0.00012873,2]
[339642455,1727790640601,-214.4624622,0.00012873,2]
[339642457,1727790640610,-500.0,0.00012873,2]
[339642459,1727790640619,-150.0,0.00012877,2]
[339642461,1727790640633,-150.0,0.00012877,2]
[339642463,1727790640649,-1331.72219257,0.00012877,2]
[339642465,1727790640658,-275.21,0.00012878,2]
[339642467,1727790640668,-58887.64107233,0.0001289,2]
[339642471,1727790640835,-151.0,0.00012891,2]
[339642472,1727790640846,-41933.08428842,0.00012899,2]
[339642473,1727790640855,-317.5,0.00012899,2]
[339642474,1727790640865,-1000.0,0.00012899,2]
[339642475,1727790640878,-1000.0,0.00012899,2]
[339642476,1727790640887,-1000.0,0.00012899,2]
[339642477,1727790640897,-1000.0,0.00012899,2]
[339642478,1727790640906,-9437.30256314,0.00012899,2]
[339642479,1727790640915,-1000.0,0.00012899,2]
[339642480,1727790640925,-1000.0,0.00012899,2]
[339642481,1727790640934,-849.21,0.00012899,2]
[339642482,1727790640944,-1000.0,0.00012899,2]
[339642483,1727790640952,-1000.0,0.00012899,2]
[339642484,1727790640962,-184.70752994,0.00012899,2]
[339642485,1727790640971,-500.0,0.00012899,2]
[339642486,1727790640981,-500.0,0.00012899,2]
[339642487,1727790640990,-500.0,0.00012899,2]
[339642488,1727790640999,-407.79417769,0.00012899,2]
[339642489,1727790641008,-500.0,0.00012899,2]
[339642490,1727790641017,-1000.0,0.00012899,2]
[339642491,1727790641026,-1000.0,0.00012899,2]
[339642492,1727790641035,-198.25351159,0.000129,2]
[339642493,1727790641045,-3378869.42542995,0.000129,2]
[339642494,1727790641214,-442973.21699062,0.000129,2]
[339642495,1727790641223,-16079.64773755,0.000129,2]
[339642496,1727790641232,-374624.90760709,0.000129,2]
[339642497,1727790641315,-1173.13399433,0.000129,2]
[339642498,1727790641330,-315.0,0.000129,2]
[339642499,1727790641342,-3107.99335372,0.000129,2]
[339642500,1727790641353,-2588.90000003,0.000129,2]
[339642501,1727790641364,-842.40632519,0.000129,2]
[339642502,1727790641379,-1424.04158165,0.000129,2]
[339642503,1727790641392,-9209.71463281,0.000129,2]
[339642505,1727790641403,-1344.25561625,0.000129,2]
[339642507,1727790641415,-316.371055,0.000129,2]
[339642509,1727790641426,-1891.89,0.000129,2]
[339642523,1727790643254,-109923.10309744,0.000129,2]
[339642526,1727790643265,-253.636,0.000129,2]
[339642535,1727790643337,-1260.0,0.000129,2]
[339642537,1727790643348,-33900.10187279,0.000129,2]
[339642538,1727790643359,-259.72765421,0.000129,2]
[339642539,1727790643483,-3230.70846362,0.000129,2]
[339642540,1727790643495,-1256.42,0.000129,2]
[339642541,1727790643506,-12231.34944377,0.000129,2]
[339642542,1727790643559,-3628.54879643,0.000129,2]
[339642543,1727790643571,-9102.09895848,0.000129,2]
[339642544,1727790643582,-2277.51505257,0.000129,2]
[339642546,1727790646214,-207.490841,0.00011777,2]
[339642547,1727790646224,-1606.71985561,0.000129,2]
[339642549,1727790646296,-207.490841,0.00011924,2]
[339642550,1727790646306,-326.73929144,0.000129,2]
[339642551,1727790646317,-1261.4,0.000129,2]
[339642552,1727790646496,-50756.73307557,0.000129,2]
[339642553,1727790646508,-445.63227978,0.000129,2]
[339642554,1727790646519,-397.3,0.000129,2]
[339642555,1727790646534,-502.8,0.000129,2]
[339642556,1727790646547,-12555.2435422,0.000129,2]
[339642557,1727790646619,-256.50232768,0.000129,2]
[339642558,1727790646637,-9002.72690644,0.000129,2]
[339642616,1727790805651,500.01,0.00022,120]
[339642617,1727790848688,-1289.6796,0.00010153,2]
[339642618,1727790890336,300.0,0.00022,120]
[339642619,1727790890562,300.0,0.00022,120]
[339642620,1727790890748,399.99,0.00022,120]
[339642621,1727790891612,300.0,0.00022,120]
[339642622,1727790891802,300.0,0.00022,120]
[339642623,1727790892011,300.0,0.00022,120]
[339642624,1727790892460,513.23369437,0.00022,120]
[339642625,1727791117163,300.0,0.00022,120]
[339642626,1727791185394,624.24,0.00022,120]
[339642627,1727791314282,488.39,9.379e-05,2]
[339642628,1727791324173,200.0,0.00022,120]
[339642629,1727791489985,174.37874904,0.00021,60]
[339642634,1727791831453,-150.0,0.0001079,2]
[339642635,1727791831463,-387.69311724,0.000108,2]
[339642636,1727791831472,-155.03679,0.0001089,2]
[339642637,1727791831482,-21283.4227,0.000109,2]
[339642638,1727791831491,-1000.0,0.000109,2]
[339642639,1727791831501,-163.69,0.00010959,2]
[339642640,1727791831511,-710.32,0.00010959,2]
[339642641,1727791831521,-250.0,0.00010985,2]
[339642642,1727791831530,-1050.0,0.00011,2]
[339642643,1727791831539,-150.0,0.00011027,2]
[339642644,1727791831548,-5873.0,0.00011028,2]
[339642645,1727791831558,-150.0,0.00011028,2]
[339642646,1727791831567,-13504.0,0.00011028,2]
[339642647,1727791831576,-1148.0,0.00011028,2]
[339642648,1727791831585,-250.0,0.00011033,2]
[339642649,1727791831595,-250.0,0.00011041,2]
[339642650,1727791831604,-1000.0,0.00011072,2]
[339642651,1727791831614,-546.81,0.00011102,2]
[339642652,1727791831623,-259.82,0.00011111,2]
[339642653,1727791831632,-336.99,0.00011142,2]
[339642654,1727791831642,-201.875,0.0001119,2]
[339642655,1727791831651,-200.628,0.0001119,2]
[339642656,1727791831660,-1265.888,0.0001119,2]
[339642657,1727791831669,-1296.0,0.0001119,2]
[339642658,1727791831679,-450.107,0.0001119,2]
[339642659,1727791831688,-627.933,0.0001119,2]
[339642660,1727791831697,-276.768,0.0001119,2]
[339642661,1727791831707,-810.0,0.0001119,2]
[339642662,1727791831716,-933.0,0.0001119,2]
[339642663,1727791831725,-559.0,0.0001119,2]
[339642664,1727791831734,-599.62,0.0001119,2]
[339642665,1727791831744,-1907.438,0.0001119,2]
[339642666,1727791831755,-809.0,0.0001119,2]
[339642667,1727791831764,-1915.39,0.0001119,2]
[339642668,1727791831773,-1465.94524755,0.0001119,2]
[339642669,1727791831788,-1890.96875245,0.0001119,2]
[339642670,1727791831797,-1258.06674755,0.000112,2]
[339642671,1727791831812,-40.05325245,0.000112,2]
[339642672,1727791831821,-511.8498062,0.000112,2]
[339642673,1727791831830,-200.0,0.000112,2]
[339642674,1727791831840,-66.92138652,0.000112,2]
[339642675,1727791831853,-363.53087376,0.000112,2]
[339642676,1727791831862,-500.0,0.000112,2]
[339642677,1727791831872,-4.46379712,0.00011316,2]
[339642678,1727791831883,-313.995068,0.00011316,2]
[339642679,1727791831895,-711.6,0.00011316,2]
[339642680,1727791831906,-11176.44113488,0.00011316,2]
[339642681,1727791831915,-496.04,0.00011507,2]
[339642682,1727791831925,-301.1,0.00011528,2]
[339642683,1727791831934,-158.45,0.00011585,2]
[339642684,1727791831944,-488.39,0.00011643,2]
[339642685,1727791831954,-336.99,0.00011699,2]
[339642686,1727791831963,-203.142652,0.00011777,2]
[339642687,1727791831973,-162.531062,0.00011777,2]
[339642688,1727791831982,-203.142652,0.00011924,2]
[339642689,1727791831992,-200.0,0.00012,2]
[339642690,1727791832003,-207.490841,0.00012071,2]
[339642691,1727791832013,-203.142652,0.00012071,2]
[339642692,1727791832022,-207.490841,0.00012218,2]
[339642693,1727791832032,-203.142652,0.00012218,2]
[339642694,1727791832042,-228.7,0.0001222,2]
[339642695,1727791832051,-336.99,0.00012257,2]
[339642696,1727791832060,-207.490841,0.00012365,2]
[339642697,1727791832069,-203.142652,0.00012365,2]
[339642698,1727791832079,-318.1,0.000124,2]
[339642699,1727791832088,-999.28,0.000124,2]
[339642701,1727791832097,-1000.0,0.00012456,2]
[339642703,1727791832106,-259.82,0.000125,2]
[339642705,1727791832116,-643.13743018,0.000127,2]
[339642706,1727791832125,-643.13743009,0.00012711,2]
[339642707,1727791832135,-459.03922656,0.00012722,2]
[339642708,1727791832147,-184.09820353,0.00012722,2]
[339642709,1727791832156,-643.13743009,0.00012733,2]
[339642710,1727791832166,-422.38190686,0.00012744,2]
[339642712,1727791832176,-643.13743009,0.00012744,2]
[339642714,1727791832185,-643.13743009,0.00012756,2]
[339642716,1727791832194,-643.13743009,0.00012767,2]
[339642718,1727791832203,-643.13743009,0.00012778,2]
[339642720,1727791832213,-643.13743009,0.00012789,2]
[339642722,1727791832222,-152.73,0.0001279,2]
[339642724,1727791832232,-48.61345592,0.00012799,2]
[339642726,1727791832249,-137.72721672,0.00012799,2]
[339642727,1727791832258,-115.41385545,0.00012799,2]
[339642728,1727791832276,-384.58614455,0.00012799,2]
[339642729,1727791832285,-500.0,0.00012799,2]
[339642730,1727791832295,-500.0,0.00012799,2]
[339642732,1727791832304,-500.0,0.00012799,2]
[339642733,1727791832314,-134.44338387,0.00012799,2]
[339642734,1727791832326,-365.55661613,0.00012799,2]
[339642735,1727791832336,-297.72313431,0.00012799,2]
[339642736,1727791832347,-94.33684029,0.00012799,2]
[339642737,1727791832357,-405.66315971,0.00012799,2]
[339642738,1727791832368,-94.33684029,0.00012799,2]
[339642739,1727791832378,-500.0,0.00012799,2]
[339642740,1727791832387,-68.21150588,0.00012799,2]
[339642741,1727791832399,-230.74407449,0.00012799,2]
[339642742,1727791832408,-310.99506448,0.00012799,2]
[339642743,1727791832418,-168.36030925,0.00012799,2]
[339642744,1727791832428,-352.53552434,0.000128,2]
[339642745,1727791832438,-2802.8624,0.000128,2]
[339642746,1727791832447,-159.59588203,0.000128,2]
[339642747,1727791832457,-365.12256427,0.000128,2]
[339642748,1727791832469,-8423.78643573,0.000128,2]
[339642749,1727791832478,-1041.96356427,0.000128,2]
[339642750,1727791832493,-496.12,0.000128,2]
[339642751,1727791832508,-1571.8,0.000128,2]
[339642752,1727791832519,-3420.96410104,0.000128,2]
[339642753,1727791832531,-947.8638113,0.000128,2]
[339642754,1727791832542,-1366.00042613,0.000128,2]
[339642755,1727791832554,-17348.33994674,0.000128,2]
[339642756,1727791832565,-679.71,0.000128,2]
[339642757,1727791837545,-3783.92370404,0.000128,2]
[339642758,1727791837557,-5291.00300845,0.000128,2]
[339642759,1727791837568,-800.67916805,0.000128,2]
[339642760,1727791837583,-676.9512002,0.000128,2]
[339642761,1727791837605,-522.54170576,0.000128,2]
[339642762,1727791837617,-7279.41342549,0.000128,2]
[339642763,1727791837628,-31499.12898451,0.000128,2]
[339642764,1727791837639,-6296.33650006,0.000128,2]
[339642765,1727791837731,-817144.92227571,0.000128,2]
[339642766,1727791837742,-643.13743009,0.000128,2]
[339642767,1727791837754,-4381.5004,0.000128,2]
[339642768,1727791837764,-5358.15730304,0.000128,2]
[339642769,1727791837773,-336.99,0.00012814,2]
[339642770,1727791837783,-1000.0,0.00012835,2]
[339642771,1727791837792,-1000.0,0.00012835,2]
[339642772,1727791837805,-1000.0,0.00012835,2]
[339642773,1727791837814,-1000.0,0.00012835,2]
[339642774,1727791837824,-1000.0,0.00012835,2]
[339642775,1727791837833,-1000.0,0.00012835,2]
[339642776,1727791837843,-1000.0,0.00012835,2]
[339642777,1727791837852,-1000.0,0.00012835,2]
[339642778,1727791837862,-1000.0,0.00012835,2]
[339642779,1727791837871,-601.9843,0.00012835,2]
[339642780,1727791837881,-152.73,0.0001289,2]
[339642781,1727791837891,-386.97404896,0.00012899,2]
[339642782,1727791837900,-1142.96945524,0.00012899,3]
[339642783,1727791837909,-201.6151499,0.00012899,3]
[339642784,1727791837919,-1142.96945524,0.00012899,3]
[339642785,1727791837928,-1142.96945524,0.00012899,3]
[339642786,1727791837938,-1142.96945523,0.00012899,3]
[339642787,1727791837948,-521.31505223,0.00012899,2]
[339642788,1727791837957,-1000.0,0.00012899,2]
[339642789,1727791837967,-1000.0,0.00012899,2]
[339642790,1727791837976,-1000.0,0.00012899,2]
[339642791,1727791837986,-1000.0,0.00012899,2]
[339642792,1727791837995,-1000.0,0.00012899,2]
[339642793,1727791838008,-1000.0,0.00012899,2]
[339642794,1727791838018,-1000.0,0.00012899,2]
[339642795,1727791838027,-218.84098603,0.00012899,2]
[339642796,1727791838037,-1000.0,0.00012899,2]
[339642797,1727791838046,-678.0,0.000129,2]
[339642798,1727791838056,-158.60280927,0.000129,2]
[339642799,1727791838065,-911165.6436415,0.000129,2]
[339642800,1727791838077,-5974.7917284,0.000129,2]
[339642801,1727791838088,-545.23130545,0.000129,2]
[339642802,1727791838099,-1152.06794487,0.000129,2]
[339642803,1727791838111,-3704.1009641,0.000129,2]
[339642804,1727791838131,-410.36458187,0.00012873,2]
[339642805,1727791838140,-2943.57992338,0.000129,2]
[339642806,1727791838151,-667.24633407,0.000129,2]
[339642807,1727791838162,-631.83114,0.000129,2]
[339642808,1727791838174,-504.3514221,0.000129,2]
[339642809,1727791838185,-1011.0099477,0.000129,2]
[339642810,1727791838196,-1000.7924406,0.000129,2]
[339642812,1727791838207,-3843.61361225,0.000129,2]
[339642814,1727791838218,-12614.80000001,0.000129,2]
[339642815,1727791838229,-44775.30358361,0.000129,2]
[339642816,1727791838240,-11397.85447334,0.000129,2]
[339642817,1727791838251,-838.63282662,0.000129,2]
[339642818,1727791838265,-459.01463883,0.000129,2]
[339642819,1727791838276,-1720.75393469,0.000129,2]
[339642820,1727791838287,-2146.17360397,0.000129,2]
[339642821,1727791838298,-705.09885338,0.000129,2]
[339642822,1727791838309,-135717.78159402,0.000129,2]
[339642823,1727791838320,-5878.35106938,0.000129,2]
[339642824,1727791838331,-19099.21,0.000129,2]
[339642825,1727791838342,-6057.23386798,0.000129,2]
[339642826,1727791838353,-13271.56862149,0.000129,2]
[339642827,1727791838364,-24654.16122351,0.000129,2]
[339642828,1727791838375,-22243.24876,0.000129,2]
[339642829,1727791838386,-561.92695058,0.000129,2]
[339642830,1727791838397,-794.86802,0.000129,2]
[339642831,1727791839505,-767.91240411,0.00011028,2]
[339642832,1727791839613,-313.08759589,0.00011028,2]
[339642833,1727791839622,-198.04096323,0.00012799,2]
[339642834,1727791839631,-12087.65764088,0.000129,2]
[339642835,1727791839726,-300.060222,0.000129,2]
[339642928,1727791842555,-3115.1004493,0.000129,2]
[339642929,1727791842582,-12324.98705802,0.000129,2]
[339642930,1727791842687,-2081.48644442,0.000129,2]
[339642931,1727791842700,-2206.225,0.000129,2]
[339642932,1727791842715,-11506.722,0.000129,2]
[339642933,1727791842750,-15800.037,0.000129,2]
[339642946,1727791845745,-789.02029387,0.000128,2]
[339642947,1727791845755,-663.0,0.000129,2]
[339642948,1727791845764,-3965.00835882,0.000129,2]
[339642963,1727792344608,1000.0,0.00022,120]
[339642965,1727792544632,467.82,9.712e-05,2]
[339642966,1727792551902,500.0,0.00022,120]
[339642978,1727793031614,-423.0779132,0.00010859,2]
[339642979,1727793031624,-300.0,0.00010899,2]
[339642980,1727793031633,-203.35844557,0.000109,2]
[339642981,1727793031644,-3582.13485443,0.000109,2]
[339642982,1727793031654,-201.50783116,0.000109,2]
[339642983,1727793031663,-166.11874511,0.000109,2]
[339642984,1727793031675,-1156.86941683,0.000109,2]
[339642985,1727793031684,-264.31339832,0.000109,2]
[339642986,1727793031693,-163.92724834,0.000109,2]
[339642987,1727793031703,-1000.0,0.000109,2]
[339642988,1727793031712,-163.72,0.00010959,2]
[339642989,1727793031721,-151.69,0.00010959,2]
[339642990,1727793031731,-233.74,0.00010959,2]
[339642991,1727793031740,-194.78,0.00010959,2]
[339642992,1727793031749,-162.32,0.00010959,2]
[339642993,1727793031758,-811.62,0.00010959,2]
[339642994,1727793031770,-500.0,0.00010973,2]
[339642995,1727793031779,-500.0,0.00010973,2]
[339642996,1727793031789,-153.83,0.0001099,2]
[339642997,1727793031798,-150.0,0.00010998,2]
[339642998,1727793031808,-1002.79743856,0.00010999,2]
[339642999,1727793031817,-500.0,0.00010999,2]
[339643000,1727793031826,-500.0,0.00010999,2]
[339643001,1727793031835,-304.87249795,0.00010999,2]
[339643002,1727793031852,-195.12750205,0.00010999,2]
[339643003,1727793031862,-500.0,0.00010999,2]
[339643004,1727793031872,-500.0,0.00010999,2]
[339643005,1727793031881,-500.0,0.00010999,2]
[339643006,1727793031891,-500.0,0.00010999,2]
[339643007,1727793031901,-171.1851843,0.00010999,2]
[339643008,1727793031910,-588.26893947,0.00010999,2]
[339643009,1727793031920,-500.0,0.00010999,2]
[339643010,1727793031929,-500.0,0.00010999,2]
[339643011,1727793031938,-500.0,0.00010999,2]
[339643012,1727793031947,-500.0,0.00010999,2]
[339643013,1727793031957,-38.84237418,0.00010999,2]
[339643014,1727793031969,-312.74757207,0.00010999,2]
[339643015,1727793031978,-413.92988905,0.00010999,2]
[339643016,1727793031989,-86.07011095,0.00010999,2]
[339643017,1727793031999,-500.0,0.00010999,2]
[339643018,1727793032008,-500.0,0.00010999,2]
[339643019,1727793032018,-500.0,0.00010999,2]
[339643020,1727793032027,-500.0,0.00010999,2]
[339643021,1727793032036,-213.92988905,0.00011,2]
[339643022,1727793032048,-7387.4581619,0.00011,2]
[339643023,1727793032058,-2300.0,0.00011,2]
[339643024,1727793032079,-857.30470671,0.00011,2]
[339643025,1727793032095,-854.80884198,0.00011,2]
[339643026,1727793032106,-6817.17459968,0.00011,2]
[339643027,1727793032121,-2414.07668284,0.00011,2]
[339643028,1727793032132,-7098.22734583,0.00011,2]
[339643029,1727793032143,-1150.52805857,0.00011,2]
[339643030,1727793032158,-415.98592689,0.00011,2]
[339643031,1727793032169,-259568.58101127,0.00011,2]
[339643032,1727793032180,-408.73225088,0.00011,2]
[339643033,1727793032200,-256.41264469,0.00011,2]
[339643034,1727793037664,-4451.35657247,0.00011,2]
[339643036,1727793037675,-484.0774728,0.00011,2]
[339643039,1727793037694,-2000.0,0.00011,2]
[339643043,1727793037815,-678431.73313865,0.00011,2]
[339643044,1727793037854,-2973.57485311,0.00011,2]
[339643045,1727793037888,-5146.02669942,0.00011,2]
[339643046,1727793037920,-5364.2574944,0.00011,2]
[339643047,1727793037931,-5126.21348735,0.00011,2]
[339643048,1727793037948,-44939.40900004,0.00011,2]
[339643058,1727793039744,-116457.35725128,0.00011,2]
[339643059,1727793039756,-3419.34160707,0.00011,2]
[339643060,1727793039768,-793.38664399,0.00011,2]
[339643061,1727793039782,-655.39084269,0.00011,2]
[339643062,1727793039798,-384920.21321784,0.00011,2]
[339643063,1727793039810,-25223.42161428,0.00011,2]
[339643064,1727793039821,-103593.22199597,0.00011,2]
[339643065,1727793039831,-874.11182625,0.00011,2]
[339643066,1727793039843,-3361.07830627,0.00011,2]
[339643067,1727793040003,-1050.1,0.00011,2]
[339643068,1727793040015,-313.78799327,0.00011,2]
[339643069,1727793040027,-587.38728791,0.00011,2]
[339643071,1727793040038,-35597.93891659,0.00011,2]
[339643074,1727793040053,-460.63094984,0.00011,2]
[339643076,1727793040064,-502.20044039,0.00011,2]
[339643078,1727793040075,-473.28023069,0.00011,2]
[339643080,1727793040086,-2485.43080663,0.00011,2]
[339643082,1727793040097,-1636.7999998,0.00011,2]
[339643085,1727793040113,-950.0,0.00011,2]
[339643087,1727793040125,-1028.443,0.00011,2]
[339643089,1727793040136,-470.59406132,0.00011,2]
[339643091,1727793040147,-582.83643837,0.00011,2]
[339643093,1727793040158,-1979.79404271,0.00011,2]
[339643096,1727793040169,-1156.2,0.00011,2]
[339643098,1727793040180,-2689.99555988,0.00011,2]
[339643100,1727793040191,-333.81892786,0.00011,2]
[339643103,1727793040213,-606.85772537,0.00011,2]
[339643105,1727793040224,-1086.76237808,0.00011,2]
[339643107,1727793040235,-14769.35656793,0.00011,2]
[339643109,1727793040246,-10725.72993336,0.00011,2]
[339643111,1727793040257,-1279.15335669,0.00011,2]
[339643113,1727793040268,-11155.02945712,0.00011,2]
[339643115,1727793040287,-271.37002482,0.00011,2]
[339643117,1727793040299,-1182.8,0.00011,2]
[339643121,1727793040320,-3084.36909757,0.00011,2]
[339643123,1727793040331,-1195.16112444,0.00011,2]
[339643125,1727793040343,-9643.92039372,0.00011,2]
[339643127,1727793040354,-16040.5,0.00011,2]
[339643129,1727793040365,-425.97427235,0.00011,2]
[339643131,1727793040376,-600.70263248,0.00011,2]
[339643133,1727793040387,-1041.85,0.00011,2]
[339643135,1727793040399,-2529.38990876,0.00011,2]
[339643266,1727793042585,150.0,0.00010154,2]
[339643267,1727793042660,-789.99,0.00011,2]
[339643268,1727793042672,-3689.76926832,0.00011,2]
[339643269,1727793042690,-541.92539657,0.00011,2]
[339643270,1727793042702,-697.68583,0.00011,2]
[339643271,1727793042714,-720.02828238,0.00011,2]
[339643272,1727793042725,-502.49912,0.00011,2]
[339643273,1727793042736,-23521.76724492,0.00011,2]
[339643274,1727793042748,-935.21484251,0.00011,2]
[339643275,1727793042809,-776.06146747,0.00011,2]
[339643276,1727793042821,-7371.9937438,0.00011,2]
[339643277,1727793042832,-584485.89053351,0.00011,2]
[339643278,1727793042844,-2240.0,0.00011,2]
[339643279,1727793042855,-478.80000015,0.00011,2]
[339643280,1727793042866,-18309.48889713,0.00011,2]
[339643281,1727793042877,-4869.92671002,0.00011,2]
[339643282,1727793042888,-456.47,0.00011,2]
[339643283,1727793042906,-5719.8045,0.00011,2]
[339643284,1727793042918,-5583.5631858,0.00011,2]
[339643285,1727793042929,-5976.22869519,0.00011,2]
[339643286,1727793042940,-474.75197773,0.00011,2]
[339643287,1727793042956,-1016.1,0.00011,2]
[339643288,1727793042968,-1308.00000413,0.00011,2]
[339643289,1727793042982,-858.6849167,0.00011,2]
[339643290,1727793042993,-12886.9910005,0.00011,2]
[339643291,1727793043031,-316.220239,0.00011,2]
[339643292,1727793043043,-1154.07111331,0.00011,2]
[339643293,1727793043056,-5185.27552828,0.00011,2]
[339643300,1727793045692,-197592.0000002,0.00011,2]
[339643301,1727793045760,-7536.69814211,0.00011,2]